bitfinex/quotes_SOLUSD_20250107
["timestamp","ask_amount","ask_price","bid_price","bid_amount"]
[1736269410679,1.6075,207.95,207.9,2.88]
[1736269411000,1.6075,207.95,207.89,0.87958604]
[1736269411310,1.6075,207.95,207.92,0.12549]
[1736269413111,1.6075,207.95,207.92,24.027864]
[1736269416820,1.6075,207.95,207.93,2.88]
[1736269417188,1.6075,207.95,207.94,0.12549]
[1736269419306,1.6075,207.95,207.92,2.88]
[1736269419615,21.6075,207.95,207.92,2.88]
[1736269423897,21.6075,207.95,207.78,55.3314]
[1736269423898,20.0,207.91,207.78,55.3314]
[1736269424097,1.5132,207.9,207.79,2.88]
[1736269424296,1.5132,207.9,207.81,24.027864]
[1736269424994,1.5132,207.9,207.81,23.902374]
[1736269425314,1.5132,207.9,207.82,0.12549]
[1736269430704,1.5132,207.9,207.79,24.027864]
[1736269430904,1.5132,207.9,207.84,0.12549]
[1736269431398,1.5132,207.9,207.84,0.25098]
[1736269432010,1.5132,207.9,207.84,0.12549]
[1736269432208,20.0,207.86,207.84,0.12549]
[1736269436037,20.0,207.86,207.77,24.027864]
[1736269436340,20.0,207.86,207.79,23.902374]
[1736269436727,20.0,207.86,207.8,0.12549]
[1736269437040,6.3426,207.89,207.8,0.12549]
[1736269441737,6.3426,207.89,207.79,35.933274]
[1736269443112,20.0,207.86,207.79,23.902374]
[1736269443432,20.0,207.86,207.8,2.86]
[1736269443810,20.0,207.86,207.73,12.0347]
[1736269444041,1.6096,207.85,207.69,1.5306]
[1736269444220,1.6096,207.85,207.7,2.98549]
[1736269444427,20.0,207.81,207.68,43.32]
[1736269444638,20.0,207.81,207.71,2.86]
[1736269444943,20.0,207.81,207.72,24.027864]
[1736269445239,20.0,207.81,207.72,0.12549]
[1736269445419,20.0,207.81,207.72,24.027864]
[1736269445730,20.0,207.81,207.72,0.12549]
[1736269446035,20.0,207.81,207.74,23.902374]
[1736269447034,20.0,207.81,207.75,0.12549]
[1736269447233,20.0,207.81,207.73,2.88]
[1736269448032,20.0,207.81,207.75,0.12549]
[1736269448222,1.644,207.8,207.75,0.12549]
[1736269448419,1.644,207.8,207.68,43.32]
[1736269448641,1.644,207.8,207.69,2.88]
[1736269448841,1.644,207.8,207.7,0.12549]
[1736269449340,6.5882,207.79,207.72,0.25098]
[1736269449520,20.0,207.76,207.72,0.25098]
[1736269450116,20.0,207.76,207.73,2.88]
[1736269450318,20.0,207.76,207.74,0.12549]
[1736269451044,20.0,207.76,207.74,0.25098]
[1736269451232,6.5882,207.79,207.74,0.25098]
[1736269451748,20.0,207.76,207.74,0.12549]
[1736269451938,20.0,207.76,207.74,2.88]
[1736269452258,6.5882,207.79,207.75,0.12549]
[1736269453147,20.0,207.76,207.75,0.12549]
[1736269454227,20.0,207.76,207.74,2.88]
[1736269454424,20.0,207.76,207.68,43.32]
[1736269454620,20.0,207.76,207.69,2.88]
[1736269454841,20.0,207.76,207.71,0.12549]
[1736269455639,20.0,207.76,207.71,0.25098]
[1736269458830,20.0,207.76,207.73,0.25098]
[1736269460326,20.0,207.76,207.73,0.12549]
[1736269463538,20.0,207.76,207.73,0.25098]
[1736269463739,20.0,207.71,207.65,2.88]
[1736269464266,20.0,207.71,207.66,0.25098]
[1736269464731,20.0,207.71,207.67,0.12549]
[1736269465439,20.0,207.71,207.67,0.25098]
[1736269466555,20.0,207.71,207.66,2.88]
[1736269466772,20.0,207.71,207.59,23.776884]
[1736269466943,20.0,207.71,207.6,2.88]
[1736269467643,20.0,207.71,207.61,0.25098]
[1736269468258,20.0,207.71,207.61,24.027864]
[1736269470654,1.5476,207.7,207.61,0.25098]
[1736269470861,1.5476,207.7,207.62,2.86]
[1736269471047,1.5476,207.7,207.63,2.86]
[1736269471343,1.5476,207.7,207.64,2.86]
[1736269471961,1.5476,207.7,207.65,0.25098]
[1736269473269,1.5476,207.7,207.65,0.12549]
[1736269474765,1.5476,207.7,207.64,0.25098]
[1736269475267,1.5476,207.7,207.65,0.12549]
[1736269480271,20.0,207.66,207.5,43.34]
[1736269480449,20.0,207.66,207.52,8.89022894]
[1736269480772,20.0,207.66,207.55,23.902374]
[1736269480947,20.0,207.66,207.55,32.79260294]
[1736269481149,20.0,207.66,207.59,0.12549]
[1736269481344,6.4997,207.69,207.61,23.902374]
[1736269481653,1.5476,207.7,207.61,23.902374]
[1736269481973,1.5476,207.7,207.62,0.12549]
[1736269483049,6.5782,207.74,207.64,0.12549]
[1736269483245,6.5782,207.74,207.66,0.12549]
[1736269483464,6.5782,207.74,207.68,0.12549]
[1736269483658,1.5398,207.75,207.7,0.25098]
[1736269485056,1.5398,207.75,207.7,24.027864]
[1736269486372,1.5398,207.75,207.7,0.12549]
[1736269487057,1.5398,207.75,207.7,0.25098]
[1736269490456,1.5398,207.75,207.7,0.12549]
[1736269490661,1.5398,207.75,207.71,2.86]
[1736269491593,1.5398,207.75,207.72,0.12549]
[1736269492368,1.5398,207.75,207.63,24.027864]
[1736269492582,1.5398,207.75,207.65,23.902374]
[1736269493205,1.5398,207.75,207.66,0.12549]
[1736269494571,1.95848565,207.82,207.66,0.12549]
[1736269494572,1.95848565,207.82,207.69,0.12549]
[1736269494775,9.50091093,207.83,207.69,0.12549]
[1736269494776,7.49124292,207.83,207.69,8.89022894]
[1736269494985,7.49124292,207.83,207.67,12.0383]
[1736269495183,8.0596,207.79,207.64,14.8999]
[1736269495385,8.0596,207.79,207.66,8.89022894]
[1736269495693,8.0596,207.79,207.7,0.12549]
[1736269496397,8.0596,207.79,207.68,0.12549]
[1736269497191,8.0596,207.79,207.7,0.12549]
[1736269498171,8.0596,207.79,207.68,0.12549]
[1736269498786,8.0596,207.79,207.7,0.25098]
[1736269499589,1.5795,207.79,207.72,24.027864]
[1736269499779,20.0,207.81,207.74,24.027864]
[1736269501003,20.0,207.81,207.74,0.12549]
[1736269501372,20.0,207.81,207.71,24.027864]
[1736269501689,20.0,207.81,207.73,0.12549]
[1736269502500,20.0,207.81,207.75,0.12549]
[1736269502880,20.0,207.81,207.73,0.12549]
[1736269503609,20.0,207.81,207.75,0.12549]
[1736269504314,20.0,207.81,207.73,0.12549]
[1736269504615,20.0,207.81,207.75,0.12549]
[1736269505615,20.0,207.81,207.74,0.12549]
[1736269507201,8.1464,207.84,207.75,0.12549]
[1736269508505,0.12549,207.83,207.73,9.01571894]
[1736269509715,0.12549,207.83,207.73,23.902374]
[1736269510007,0.12549,207.83,207.73,32.79260294]
[1736269510507,8.1464,207.84,207.78,9.01571894]
[1736269510699,1.5882,207.84,207.78,9.01571894]
[1736269510877,7.8274,207.89,207.82,0.12549]
[1736269511077,7.8274,207.89,207.84,0.12549]
[1736269511503,0.12549,207.88,207.86,0.12549]
[1736269512105,0.12549,207.88,207.79,8.89022894]
[1736269512402,0.12549,207.85,207.8,2.84]
[1736269512593,0.12549,207.85,207.81,2.84]
[1736269512792,0.12549,207.85,207.82,2.84]
[1736269513388,0.12549,207.85,207.83,2.84]
[1736269514480,0.12549,207.85,207.84,0.12549]
[1736269518310,0.12549,207.85,207.72,12.0354]
[1736269518528,6.19379,207.83,207.69,8.89022894]
[1736269518749,6.19379,207.83,207.7,2.84]
[1736269518750,0.12549,207.79,207.7,2.84]
[1736269519218,0.12549,207.79,207.71,0.12549]
[1736269520619,0.12549,207.79,207.71,9.01571894]
[1736269520792,0.12549,207.79,207.71,0.12549]
[1736269522536,0.12549,207.79,207.73,0.12549]
[1736269525455,0.12549,207.79,207.7,0.12549]
[1736269525743,0.12549,207.79,207.74,2.84]
[1736269526117,0.12549,207.79,207.69,0.12549]
[1736269526324,0.12549,207.77,207.7,2.84]
[1736269526624,0.12549,207.77,207.71,0.12549]
[1736269527007,0.12549,207.77,207.63,43.34]
[1736269527008,0.12549,207.75,207.63,43.34]
[1736269527230,0.12549,207.72,207.64,2.84]
[1736269527527,0.12549,207.72,207.65,2.84]
[1736269528036,0.12549,207.72,207.66,0.12549]
[1736269530445,0.12549,207.7,207.6,8.89022894]
[1736269530639,0.12549,207.7,207.61,2.84]
[1736269531059,0.12549,207.7,207.62,0.12549]
[1736269532625,0.12549,207.7,207.62,9.01571894]
[1736269532827,0.12549,207.7,207.64,0.12549]
[1736269533566,0.12549,207.7,207.66,0.12549]
[1736269534849,0.12549,207.7,207.65,0.12549]
[1736269536150,0.12549,207.7,207.64,0.12549]
[1736269536853,0.12549,207.7,207.66,0.12549]
[1736269545658,0.12549,207.7,207.58,0.72219942]
[1736269545855,0.12549,207.7,207.59,2.84]
[1736269546173,0.12549,207.68,207.6,0.12549]
[1736269546661,0.12549,207.68,207.6,32.79260294]
[1736269546847,0.12549,207.68,207.62,0.12549]
[1736269547865,0.12549,207.68,207.61,0.12549]
[1736269548576,0.12549,207.68,207.59,2.84]
[1736269549266,0.12549,207.68,207.6,0.12549]
[1736269549636,0.12549,207.68,207.54,0.72232939]
[1736269549637,1.65049,207.65,207.54,12.0457]
[1736269549835,1.65049,207.65,207.55,11.73022894]
[1736269550465,1.65049,207.65,207.56,9.01571894]
[1736269550660,1.65049,207.65,207.58,0.12549]
[1736269550962,1.65049,207.65,207.58,9.01571894]
[1736269551179,1.65049,207.65,207.63,0.12549]
[1736269551339,1.65049,207.65,207.64,2.96549]
[1736269551961,0.12549,207.68,207.65,0.12549]
[1736269552147,0.12549,207.68,207.64,2.84]
[1736269554243,0.12549,207.68,207.65,0.12549]
[1736269554575,0.12549,207.68,207.65,2.96549]
[1736269556169,0.12549,207.69,207.67,0.12549]
[1736269556351,0.12549,207.69,207.68,0.12549]
[1736269556758,6.6553,207.74,207.68,9.01571894]
[1736269556953,6.6553,207.74,207.66,23.776884]
[1736269556954,6.6553,207.74,207.7,0.12549]
[1736269557259,6.6553,207.74,207.69,8.89022894]
[1736269557260,6.0605,207.79,207.73,0.12549]
[1736269557450,6.0605,207.79,207.75,0.12549]
[1736269557776,6.0605,207.79,207.77,0.12549]
[1736269557961,6.18599,207.79,207.78,2.96549]
[1736269558367,0.12549,207.79,207.78,2.96549]
[1736269559065,0.12549,207.78,207.61,24.0826]
[1736269559268,0.12549,207.78,207.62,3.7207299]
[1736269559455,0.12549,207.78,207.66,13.91984746]
[1736269559655,0.12549,207.79,207.67,23.776884]
[1736269559880,0.12549,207.79,207.68,0.12549]
[1736269560250,0.12549,207.77,207.66,0.12549]
[1736269560789,0.12549,207.74,207.66,0.12549]
[1736269561093,0.12549,207.74,207.67,2.82]
[1736269561589,0.12549,207.74,207.68,0.12549]
[1736269562796,0.12549,207.74,207.67,2.82]
[1736269562797,0.12549,207.72,207.67,2.82]
[1736269563092,0.12549,207.72,207.68,2.82]
[1736269564970,0.12549,207.72,207.69,0.12549]
[1736269565474,0.12549,207.72,207.58,13.91984746]
[1736269565684,0.12549,207.67,207.59,2.82]
[1736269566175,0.12549,207.67,207.6,0.12549]
[1736269566383,0.12549,207.67,207.61,2.82]
[1736269566557,0.12549,207.67,207.62,0.12549]
[1736269568213,0.12549,207.67,207.59,0.12549]
[1736269568412,1.6045,207.66,207.52,1.6567]
[1736269568577,0.12549,207.63,207.53,2.82]
[1736269568781,0.12549,207.6,207.49,14.64236933]
[1736269568984,0.12549,207.6,207.5,2.82]
[1736269569179,0.12549,207.6,207.5,16.73984746]
[1736269569375,0.12549,207.6,207.51,13.91984746]
[1736269570018,0.12549,207.6,207.54,13.91984746]
[1736269570205,0.12549,207.6,207.54,0.12549]
[1736269570911,0.12549,207.6,207.53,0.12549]
[1736269571685,0.12549,207.6,207.51,0.12549]
[1736269572192,0.12549,207.6,207.52,2.82]
[1736269573011,0.12549,207.6,207.53,0.12549]
[1736269577024,0.12549,207.6,207.49,0.12549]
[1736269577184,0.12549,207.58,207.5,2.82]
[1736269577798,0.12549,207.58,207.51,0.12549]
[1736269579720,0.12549,207.53,207.43,16.73984746]
[1736269579896,0.12549,207.53,207.43,2.82]
[1736269580294,0.12549,207.53,207.44,16.73984746]
[1736269580497,0.12549,207.53,207.45,14.76818854]
[1736269581330,0.12549,207.53,207.45,0.84834108]
[1736269581518,0.12549,207.53,207.45,14.76818854]
[1736269582904,0.12549,207.53,207.45,0.12549]
[1736269583212,0.12549,207.53,207.37,12.0556]
[1736269583213,0.12549,207.51,207.37,12.0556]
[1736269583518,0.12549,207.51,207.42,2.82]
[1736269585218,0.12549,207.51,207.43,0.12549]
[1736269586821,0.12549,207.51,207.37,26.85723915]
[1736269586822,0.12549,207.49,207.37,26.85723915]
[1736269587016,0.12549,207.46,207.38,2.82]
[1736269587327,0.12549,207.46,207.39,0.12549]
[1736269592935,0.12549,207.46,207.38,0.12549]
[1736269593230,0.12549,207.46,207.41,0.12549]
[1736269593930,0.12549,207.44,207.37,0.88179169]
[1736269594138,0.12549,207.44,207.37,2.82]
[1736269594617,0.12549,207.44,207.38,0.12549]
[1736269594808,0.12549,207.44,207.37,2.82]
[1736269595204,0.12549,207.44,207.34,13.91984746]
[1736269595404,0.12549,207.44,207.35,2.82]
[1736269596020,0.12549,207.44,207.36,0.12549]
[1736269597523,0.12549,207.42,207.35,2.82]
[1736269599246,0.12549,207.42,207.36,0.12549]
[1736269608562,1.5284,207.45,207.4,9.06152997]
[1736269608755,6.4687,207.48,207.43,9.06152997]
[1736269609058,6.4687,207.48,207.45,0.12549]
[1736269609260,0.12549,207.47,207.45,0.12549]
[1736269614658,20.12549,207.5,207.45,0.12549]
[1736269614857,0.12549,207.5,207.47,0.12549]
[1736269615269,6.5662,207.53,207.47,14.07982102]
[1736269615652,1.6417,207.56,207.47,14.07982102]
[1736269615856,20.12549,207.55,207.47,14.07982102]
[1736269616949,0.12549,207.55,207.49,14.07982102]
[1736269617149,0.12549,207.55,207.49,0.12549]
[1736269617348,0.12549,207.55,207.47,14.67707185]
[1736269617553,0.12549,207.55,207.48,0.12549]
[1736269617757,0.12549,207.55,207.48,14.07982102]
[1736269618149,0.12549,207.55,207.47,23.902374]
[1736269619182,0.12549,207.55,207.47,37.85670502]
[1736269619877,0.12549,207.55,207.47,0.12549]
[1736269620087,0.12549,207.55,207.47,37.85670502]
[1736269620309,0.12549,207.55,207.49,0.12549]
[1736269620496,0.12549,207.55,207.52,0.12549]
[1736269620707,6.5662,207.58,207.54,0.12549]
[1736269621018,1.517,207.62,207.54,0.12549]
[1736269621185,0.12549,207.61,207.54,14.07982102]
[1736269621600,0.12549,207.61,207.54,0.12549]
[1736269622618,1.517,207.62,207.54,0.12549]
[1736269622619,0.12549,207.59,207.54,0.12549]
[1736269627211,0.12549,207.61,207.54,0.12549]
[1736269629949,0.12549,207.59,207.54,0.12549]
[1736269634006,0.12549,207.59,207.56,0.12549]
[1736269634536,0.12549,207.59,207.4,67.4876]
[1736269634537,0.12549,207.54,207.48,2.8]
[1736269634713,0.12549,207.54,207.49,2.8]
[1736269634920,1.75349,207.54,207.49,2.8]
[1736269635349,1.75349,207.54,207.5,0.12549]
[1736269636428,1.75349,207.54,207.49,2.8]
[1736269636825,1.75349,207.54,207.43,13.95433102]
[1736269637045,1.75349,207.54,207.44,2.8]
[1736269637443,1.75349,207.54,207.45,0.12549]
[1736269639058,1.75349,207.54,207.46,2.8]
[1736269639221,1.75349,207.54,207.4,43.38]
[1736269639420,1.75349,207.54,207.46,2.8]
[1736269640031,1.75349,207.54,207.47,13.95433102]
[1736269640245,1.75349,207.54,207.48,0.12549]
[1736269640451,1.75349,207.54,207.49,13.95433102]
[1736269640967,6.5605,207.58,207.53,14.07982102]
[1736269641256,1.5842,207.6,207.56,13.95433102]
[1736269641257,0.12549,207.59,207.56,13.95433102]
[1736269641626,0.12549,207.59,207.54,2.8]
[1736269641627,0.12549,207.59,207.55,13.95433102]
[1736269642040,0.12549,207.59,207.56,14.07982102]
[1736269642642,0.12549,207.59,207.58,0.12549]
[1736269643083,0.12549,207.59,207.47,186.566384]
[1736269643084,6.123,207.58,207.47,186.566384]
[1736269643399,6.123,207.58,207.28,420.60705619]
[1736269643400,7.6458,207.41,207.28,7.50705619]
[1736269643598,7.6458,207.41,207.29,13.95433102]
[1736269643807,6.0815,207.45,207.33,13.95433102]
[1736269643964,6.0815,207.45,207.4,312.0]
[1736269644459,20.0,207.41,207.4,314.8]
[1736269644654,20.12549,207.41,207.4,314.92549]
[1736269644858,20.12549,207.41,207.4,314.8]
[1736269645085,20.12549,207.41,207.4,0.12549]
[1736269645086,42.83364556,207.41,207.4,0.12549]
[1736269645271,1.73115421,207.4,207.39,2.8]
[1736269645671,5.0011355,207.4,207.39,2.8]
[1736269645876,3.39547129,207.4,207.39,2.8]
[1736269646190,3.39547129,207.4,207.39,314.92549]
[1736269647280,3.26998129,207.4,207.39,328.87982102]
[1736269647585,0.26998129,207.4,207.39,328.87982102]
[1736269647794,29.76244373,207.41,207.4,0.12549]
[1736269648099,29.76244373,207.41,207.4,14.07982102]
[1736269648604,0.76244373,207.41,207.4,14.07982102]
[1736269649794,0.76244373,207.41,207.4,52.53408792]
[1736269650087,9.01264726,207.52,207.42,0.12549]
[1736269650302,0.12549,207.51,207.5,0.12549]
[1736269650492,0.12549,207.51,207.5,2.92549]
[1736269651107,0.12549,207.51,207.5,314.92549]
[1736269651310,0.12549,207.53,207.5,314.92549]
[1736269651483,1.60566421,207.51,207.5,2.92549]
[1736269651683,1.73115421,207.51,207.5,2.92549]
[1736269652207,1.73115421,207.51,207.5,2.8]
[1736269652793,1.73115421,207.51,207.5,2.92549]
[1736269653404,0.12549,207.51,207.5,2.92549]
[1736269653611,1.73115421,207.51,207.5,2.92549]
[1736269654613,1.73115421,207.51,207.5,314.92549]
[1736269655785,1.73115421,207.51,207.5,2.8]
[1736269656306,21.73115421,207.51,207.5,0.12549]
[1736269656471,20.12549,207.5,207.39,13.95433102]
[1736269656800,1.60566421,207.44,207.39,13.95433102]
[1736269657012,0.12549,207.43,207.4,2.8]
[1736269657186,0.12549,207.43,207.42,0.12549]
[1736269657394,0.12549,207.43,207.41,2.8]
[1736269657920,0.12549,207.43,207.42,0.12549]
[1736269658093,0.12549,207.43,207.42,2.92549]
[1736269659005,0.12549,207.43,207.42,314.92549]
[1736269662916,0.12549,207.43,207.42,312.12549]
[1736269663088,0.12549,207.43,207.42,314.92549]
[1736269663289,1.60566421,207.44,207.42,328.87982102]
[1736269663609,1.60566421,207.44,207.42,314.92549]
[1736269663914,0.12549,207.43,207.42,2.92549]
[1736269664096,0.12549,207.43,207.42,16.87982102]
[1736269665414,1.60566421,207.44,207.42,2.92549]
[1736269665800,0.12549,207.43,207.42,2.92549]
[1736269666608,0.12549,207.41,207.37,13.95433102]
[1736269666784,0.12549,207.41,207.4,312.0]
[1736269667216,0.12549,207.41,207.4,312.12549]
[1736269668094,0.12549,207.43,207.41,0.12549]
[1736269668299,0.12549,207.43,207.41,14.07982102]
[1736269668716,1.73115421,207.42,207.41,14.07982102]
[1736269669028,0.12549,207.41,207.39,13.95433102]
[1736269669313,0.12549,207.41,207.4,0.12549]
[1736269670124,0.12549,207.41,207.31,14.03545419]
[1736269670125,0.12549,207.39,207.31,14.03545419]
[1736269670300,0.12549,207.37,207.36,13.95433102]
[1736269670801,0.12549,207.39,207.36,13.95433102]
[1736269670985,0.12549,207.39,207.38,13.95433102]
[1736269671191,0.12549,207.39,207.38,326.07982102]
[1736269672405,0.12549,207.39,207.38,312.12549]
[1736269672712,0.12549,207.39,207.38,326.07982102]
[1736269674011,1.60566421,207.44,207.39,0.12549]
[1736269674210,1.60566421,207.44,207.43,14.07982102]
[1736269674536,1.60566421,207.46,207.44,0.12549]
[1736269674826,0.72328027,207.54,207.46,0.12549]
[1736269674827,1.60566421,207.48,207.46,0.12549]
[1736269675121,1.73115421,207.48,207.47,14.07982102]
[1736269675512,0.12549,207.48,207.47,14.07982102]
[1736269677123,0.12549,207.48,207.47,326.07982102]
[1736269677428,7.52337566,207.51,207.48,0.12549]
[1736269677607,7.52337566,207.51,207.5,14.07982102]
[1736269677926,7.64886566,207.51,207.5,14.07982102]
[1736269678112,0.64886566,207.51,207.5,14.07982102]
[1736269678510,0.52337566,207.51,207.5,51.81103604]
[1736269678819,0.64886566,207.51,207.5,51.81103604]
[1736269679022,0.64886566,207.51,207.5,37.85670502]
[1736269679313,0.64886566,207.51,207.5,51.81103604]
[1736269680863,15.04675132,207.53,207.5,363.93652604]
[1736269681042,15.04675132,207.53,207.52,37.85670502]
[1736269681043,0.04675132,207.53,207.52,37.85670502]
[1736269681537,30.09350264,207.54,207.53,37.85670502]
[1736269681944,0.09350264,207.54,207.53,37.85670502]
[1736269682129,0.12549,207.57,207.54,0.12549]
[1736269682331,0.12549,207.57,207.56,14.07982102]
[1736269684150,0.12549,207.57,207.56,326.07982102]
[1736269688055,1.60566421,207.62,207.57,23.902374]
[1736269688229,1.60566421,207.62,207.61,14.07982102]
[1736269688428,1.60566421,207.64,207.62,0.12549]
[1736269688723,1.60566421,207.64,207.62,14.07982102]
[1736269689445,0.12549,207.63,207.62,14.07982102]
[1736269690458,0.12549,207.63,207.62,0.12549]
[1736269690655,1.73115421,207.62,207.61,13.95433102]
[1736269690957,0.12549,207.59,207.57,13.95433102]
[1736269691252,0.12549,207.54,207.52,13.95433102]
[1736269691585,0.12549,207.54,207.43,142.4828]
[1736269691586,0.12549,207.52,207.5,13.95433102]
[1736269691864,0.12549,207.52,207.51,2.8]
[1736269692156,0.12549,207.52,207.51,2.92549]
[1736269692629,0.12549,207.52,207.51,14.07982102]
[1736269692824,0.12549,207.52,207.51,2.8]
[1736269693031,0.12549,207.52,207.51,16.75433102]
[1736269693231,0.12549,207.52,207.51,16.87982102]
[1736269693446,1.60566421,207.55,207.51,16.87982102]
[1736269693640,0.12549,207.54,207.51,16.87982102]
[1736269693831,0.12549,207.52,207.51,16.75433102]
[1736269694273,0.12549,207.52,207.51,16.87982102]
[1736269694559,0.12549,207.52,207.51,0.12549]
[1736269694753,0.12549,207.52,207.51,2.92549]
[1736269694961,0.12549,207.52,207.51,16.87982102]
[1736269696265,0.12549,207.52,207.51,2.92549]
[1736269696563,0.12549,207.52,207.51,16.87982102]
[1736269696938,0.12549,207.55,207.51,16.75433102]
[1736269697136,0.12549,207.55,207.52,13.95433102]
[1736269697967,0.12549,207.61,207.52,13.95433102]
[1736269698146,0.12549,207.61,207.55,0.12549]
[1736269698454,0.12549,207.61,207.55,13.95433102]
[1736269698661,0.12549,207.61,207.54,0.12549]
[1736269699369,0.12549,207.58,207.52,14.07982102]
[1736269699662,20.12549,207.58,207.52,0.12549]
[1736269699864,27.90709,207.58,207.5,13.95433102]
[1736269700156,34.56046248,207.58,207.51,2.8]
[1736269700362,20.0,207.54,207.5,2.8]
[1736269700565,20.0,207.54,207.47,13.95433102]
[1736269700763,20.0,207.54,207.48,16.75433102]
[1736269700972,20.0,207.54,207.53,0.12549]
[1736269701434,0.12549,207.54,207.53,0.12549]
[1736269701634,0.12549,207.53,207.52,2.92549]
[1736269701967,0.12549,207.54,207.52,2.92549]
[1736269702769,0.12549,207.54,207.52,16.87982102]
[1736269703273,7.7816,207.58,207.54,0.12549]
[1736269704273,0.12549,207.57,207.53,0.12549]
[1736269706758,0.12549,207.57,207.53,14.07982102]
[1736269708475,20.0,207.58,207.57,0.12549]
[1736269709478,20.0,207.58,207.56,13.95433102]
[1736269709479,0.12549,207.57,207.56,0.12549]
[1736269710784,0.12549,207.57,207.56,14.07982102]
[1736269711081,20.0,207.58,207.57,0.12549]
[1736269711376,20.0,207.58,207.56,0.12549]
[1736269711873,20.0,207.58,207.57,0.12549]
[1736269712074,6.65337248,207.61,207.57,14.07982102]
[1736269712573,1.6551,207.63,207.59,0.12549]
[1736269713079,20.0,207.61,207.59,0.12549]
[1736269714883,6.65337248,207.66,207.6,16.85982102]
[1736269715072,6.65337248,207.66,207.62,0.12549]
[1736269715650,20.0,207.63,207.62,0.12549]
[1736269718689,6.65337248,207.66,207.62,0.12549]
[1736269724391,6.65337248,207.66,207.6,14.07982102]
[1736269724595,20.0,207.64,207.63,0.12549]
[1736269727794,20.0,207.66,207.63,0.12549]
[1736269736091,1.94178626,207.7,207.64,8.91515101]
[1736269736286,7.52337566,207.71,207.66,0.12549]
[1736269736993,7.52337566,207.71,207.67,0.12549]
[1736269737504,20.0,207.7,207.67,0.12549]
[1736269738282,13.11781867,207.73,207.67,0.12549]
[1736269738810,13.11781867,207.73,207.66,0.12549]
[1736269739005,13.11781867,207.73,207.66,9.04064101]
[1736269739703,13.11781867,207.73,207.66,0.12549]
[1736269740017,20.0,207.73,207.67,2.78]
[1736269740381,20.0,207.73,207.68,0.12549]
[1736269742081,20.0,207.73,207.64,0.12549]
[1736269742432,20.0,207.73,207.69,0.12549]
[1736269744186,6.142,207.79,207.71,0.12549]
[1736269744187,7.52337566,207.79,207.71,0.12549]
[1736269744900,20.0,207.76,207.71,0.12549]
[1736269745614,20.0,207.77,207.71,0.12549]
[1736269746513,20.0,207.77,207.7,23.902374]
[1736269748409,20.0,207.77,207.7,32.81752501]
[1736269748991,20.0,207.77,207.72,0.12549]
[1736269749202,6.28345026,207.8,207.72,0.12549]
[1736269749415,20.0,207.77,207.72,0.12549]
[1736269750609,1.6121,207.83,207.75,0.12549]
[1736269750808,21.6121,207.83,207.77,0.12549]
[1736269751818,20.0,207.83,207.77,0.12549]
[1736269752218,20.0,207.84,207.77,0.12549]
[1736269755414,20.0,207.84,207.79,0.12549]
[1736269757700,13.72567566,207.92,207.79,23.902374]
[1736269757902,20.0,207.88,207.79,32.81752501]
[1736269758621,20.0,207.89,207.79,32.81752501]
[1736269759929,20.0,207.89,207.81,0.12549]
[1736269760108,7.48575026,207.92,207.81,0.12549]
[1736269760613,20.0,207.89,207.81,0.12549]
[1736269761113,20.0,207.89,207.8,0.12549]
[1736269763301,23.776884,207.88,207.72,2.30576203]
[1736269763501,20.0,207.84,207.73,2.78]
[1736269763799,20.0,207.8,207.72,1.5841]
[1736269764006,20.0,207.8,207.7,6.1992]
[1736269764231,20.0,207.76,207.71,2.78]